fUST/lending_fUST_20240918
["ID","MTS","AMOUNT","RATE_DAILY","PERIOD"]
[338437802,1726638648982,-2112.33,0.00019178,2]
[338437803,1726638648991,-500.0,0.00019178,2]
[338437804,1726638649001,-2573.65,0.00019178,2]
[338437805,1726638649011,-500.0,0.00019178,2]
[338437806,1726638649020,-2112.33,0.00019178,2]
[338437807,1726638649029,-2573.65,0.00019178,2]
[338437808,1726638649039,-2112.33,0.00019178,2]
[338437809,1726638649048,-2573.65,0.00019178,2]
[338437810,1726638649058,-2112.33,0.00019178,2]
[338437811,1726638649067,-2573.65,0.00019178,2]
[338437812,1726638649076,-2112.33,0.00019178,2]
[338437813,1726638649085,-2573.65,0.00019178,2]
[338437814,1726638649095,-2112.33,0.00019178,2]
[338437815,1726638649104,-500.0,0.00019178,2]
[338437816,1726638649113,-2112.33,0.00019178,2]
[338437817,1726638649123,-2573.65,0.00019178,2]
[338437818,1726638649133,-2112.33,0.00019178,2]
[338437819,1726638649142,-2573.65,0.00019178,2]
[338437820,1726638649151,-2112.55552556,0.00019178,2]
[338437821,1726638649160,-789.68,0.00019178,2]
[338437822,1726638649169,-2573.65,0.00019178,2]
[338437823,1726638649182,-248.80975726,0.00019178,2]
[338437824,1726638649192,-2573.65,0.00019178,2]
[338437825,1726638649202,-2573.65,0.00019178,2]
[338437826,1726638649211,-2573.65,0.00019178,2]
[338437827,1726638649221,-2573.65,0.00019178,2]
[338437828,1726638649230,-2573.65,0.00019178,2]
[338437829,1726638649240,-780.38,0.00019178,2]
[338437830,1726638649249,-2573.65,0.00019178,2]
[338437831,1726638649259,-2573.65,0.00019178,2]
[338437832,1726638649269,-501.94453394,0.00019178,2]
[338437833,1726638649278,-2573.65,0.00019178,2]
[338437834,1726638649288,-2573.65,0.00019178,2]
[338437835,1726638649297,-500.0,0.00019178,2]
[338437836,1726638649308,-2573.65,0.00019178,2]
[338437837,1726638649317,-151.0,0.00019178,2]
[338437838,1726638649327,-2573.65,0.00019178,2]
[338437839,1726638649336,-2573.65,0.00019178,2]
[338437840,1726638649346,-857.8,0.00019178,2]
[338437841,1726638649356,-151.0,0.00019178,2]
[338437842,1726638649367,-2573.65,0.00019178,2]
[338437843,1726638649377,-2573.65,0.00019178,2]
[338437844,1726638649385,-2573.65,0.00019178,2]
[338437845,1726638649396,-500.0,0.00019178,2]
[338437846,1726638649406,-1583.15,0.00019178,2]
[338437847,1726638649415,-158.89598799,0.00019178,2]
[338437848,1726638649425,-500.0,0.00019178,2]
[338437849,1726638649436,-5330.16,0.00019178,2]
[338437850,1726638649446,-2573.71136509,0.00019178,2]
[338437851,1726638649456,-500.0,0.00019178,2]
[338437852,1726638649465,-500.0,0.00019178,2]
[338437853,1726638649475,-500.0,0.00019178,2]
[338437854,1726638649485,-500.0,0.00019178,2]
[338437855,1726638649495,-547.78,0.00019178,2]
[338437856,1726638649504,-500.0,0.00019178,2]
[338437857,1726638649514,-500.0,0.00019178,2]
[338437858,1726638649524,-2475.5,0.00019178,2]
[338437859,1726638649534,-500.0,0.00019178,2]
[338437860,1726638649546,-1737.26,0.00019178,2]
[338437861,1726638649556,-660.5,0.00019178,2]
[338437862,1726638649566,-739.39,0.00019178,2]
[338437863,1726638649575,-589.9,0.00019178,2]
[338437864,1726638649585,-567.2668096,0.00019178,2]
[338437865,1726638649596,-556.92,0.00019178,2]
[338437866,1726638649606,-500.0,0.00019178,2]
[338437867,1726638649618,-500.0,0.00019178,2]
[338437868,1726638649629,-2254.87,0.00019178,2]
[338437869,1726638649639,-154.946537,0.00019178,2]
[338437870,1726638649648,-500.0,0.00019178,2]
[338437871,1726638649657,-1476.4,0.00019178,2]
[338437872,1726638649666,-3241.23,0.00019178,2]
[338437873,1726638649676,-844.84,0.00019178,2]
[338437874,1726638649687,-602.88926032,0.00019178,2]
[338437875,1726638649698,-565.77,0.00019178,2]
[338437876,1726638649707,-1088.76,0.00019178,2]
[338437877,1726638649717,-500.0,0.00019178,2]
[338437878,1726638649728,-2888.67,0.00019178,2]
[338437879,1726638649739,-2238.04,0.00019178,2]
[338437880,1726638649749,-500.0,0.00019178,2]
[338437881,1726638649760,-6050.51,0.00019178,2]
[338437882,1726638649771,-500.0,0.00019178,2]
[338437883,1726638649782,-500.0,0.00019178,2]
[338437884,1726638649792,-500.0,0.00019178,2]
[338437885,1726638649804,-2571.5,0.00019178,2]
[338437886,1726638649813,-500.0,0.00019178,2]
[338437887,1726638649824,-500.0,0.00019178,2]
[338437888,1726638649834,-500.0,0.00019178,2]
[338437889,1726638649845,-598.59,0.00019178,2]
[338437890,1726638649856,-500.0,0.00019178,2]
[338437891,1726638649866,-500.0,0.00019178,2]
[338437892,1726638649876,-500.0,0.00019178,2]
[338437893,1726638649886,-1518.19,0.00019178,2]
[338437894,1726638649897,-500.0,0.00019178,2]
[338437895,1726638649907,-500.0,0.00019178,2]
[338437896,1726638649917,-500.0,0.00019178,2]
[338437897,1726638649927,-500.0,0.00019178,2]
[338437898,1726638649937,-500.0,0.00019178,2]
[338437899,1726638649947,-500.0,0.00019178,2]
[338437900,1726638649958,-881.47,0.00019178,2]
[338437901,1726638649967,-2690.53,0.00019178,2]
[338437902,1726638649977,-554.19,0.00019178,2]
[338437903,1726638649987,-500.0,0.00019178,2]
[338437904,1726638649997,-500.0,0.00019178,2]
[338437905,1726638650006,-500.0,0.00019178,2]
[338437906,1726638650017,-500.0,0.00019178,2]
[338437907,1726638650028,-500.0,0.00019178,2]
[338437908,1726638650039,-500.0,0.00019178,2]
[338437909,1726638650050,-500.0,0.00019178,2]
[338437910,1726638650059,-500.0,0.00019178,2]
[338437911,1726638650069,-500.0,0.00019178,2]
[338437912,1726638650078,-822.31,0.00019178,2]
[338437913,1726638650087,-500.0,0.00019178,2]
[338437914,1726638650098,-500.0,0.00019178,2]
[338437915,1726638650108,-665.11,0.00019178,2]
[338437916,1726638650118,-500.0,0.00019178,2]
[338437917,1726638650129,-500.0,0.00019178,2]
[338437918,1726638650139,-500.0,0.00019178,2]
[338437919,1726638650148,-283.159142,0.00019178,2]
[338437920,1726638650158,-2097.29,0.00019178,2]
[338437921,1726638650167,-152.101838,0.00019178,2]
[338437922,1726638650179,-2690.62,0.00019178,2]
[338437923,1726638650190,-500.0,0.00019178,2]
[338437924,1726638650201,-152.101838,0.00019178,2]
[338437925,1726638650211,-500.0,0.00019178,2]
[338437926,1726638650222,-675.22,0.00019178,2]
[338437927,1726638650231,-500.0,0.00019178,2]
[338437928,1726638650243,-500.0,0.00019178,2]
[338437929,1726638650256,-4139.49,0.00019178,2]
[338437930,1726638650265,-152.101838,0.00019178,2]
[338437931,1726638650274,-152.101838,0.00019178,2]
[338437932,1726638650283,-2229.25,0.00019178,2]
[338437933,1726638650293,-500.0,0.00019178,2]
[338437934,1726638650303,-1657.88921689,0.00019178,2]
[338437935,1726638651684,-985.96078311,0.00019178,2]
[338437936,1726638651695,-500.0,0.00019178,2]
[338437937,1726638651706,-500.0,0.00019178,2]
[338437938,1726638651716,-500.0,0.00019178,2]
[338437939,1726638651726,-500.0,0.00019178,2]
[338437940,1726638651737,-1425.19,0.00019178,2]
[338437941,1726638651749,-162.160517,0.00019178,2]
[338437942,1726638651761,-162.160517,0.00019178,2]
[338437943,1726638651775,-500.0,0.00019178,2]
[338437944,1726638651786,-2350.51,0.00019178,2]
[338437945,1726638651796,-622.45,0.00019178,2]
[338437946,1726638651807,-2027.24,0.00019178,2]
[338437947,1726638651818,-7707.92373089,0.00019178,2]
[338437952,1726638937223,31754.18,0.00014,2]
[338437998,1726639832141,-300.0,0.00017885,2]
[338438000,1726639832152,-300.0,0.00017885,2]
[338438001,1726639832163,-452.07873622,0.00017886,2]
[338438016,1726639838203,-1139.31804052,0.00017886,2]
[338438017,1726639838215,-23308.60322326,0.00017886,2]
[338438018,1726639838225,-1000.0,0.00019,19]
[338438019,1726639838235,-1500.0,0.00019,2]
[338438020,1726639838246,-153.0,0.00019,2]
[338438021,1726639838256,-153.0,0.00019,2]
[338438022,1726639838267,-153.0,0.00019,2]
[338438023,1726639838276,-153.4082058,0.00019,2]
[338438024,1726639838287,-153.0,0.00019,2]
[338438025,1726639838298,-153.0,0.00019,2]
[338438026,1726639838310,-154.185894,0.00019,2]
[338438027,1726639838320,-153.0,0.00019,2]
[338438028,1726639838329,-313.1370526,0.00019,2]
[338438029,1726639838342,-208.6901718,0.00019,2]
[338438030,1726639838353,-1000.0,0.00019058,2]
[338438031,1726639838365,-1103.21077563,0.00019078,2]
[338438032,1726639838376,-2861.77873525,0.00019078,2]
[338438033,1726639838386,-153.0,0.000191,2]
[338438034,1726639838398,-153.0,0.000191,2]
[338438035,1726639838408,-153.0,0.000191,2]
[338438036,1726639838419,-500.0,0.00019147,2]
[338438037,1726639838429,-500.0,0.00019147,2]
[338438038,1726639838439,-283.64626947,0.00019147,2]
[338438039,1726639838449,-51088.9500493,0.00019148,3]
[338438040,1726639838459,-2375.69984318,0.00019148,3]
[338438041,1726639838469,-51088.9500493,0.00019151,3]
[338438042,1726639838479,-2375.69984318,0.00019151,3]
[338438043,1726639838491,-228.27008,0.00019157,2]
[338438044,1726639838502,-572.66824679,0.00019157,2]
[338438045,1726639838513,-500.0,0.00019157,2]
[338438046,1726639838522,-559.18559282,0.00019157,2]
[338438047,1726639838531,-322.58884088,0.00019157,2]
[338438048,1726639838541,-500.0,0.00019157,2]
[338438049,1726639838550,-500.0,0.00019157,2]
[338438050,1726639838560,-500.0,0.00019157,2]
[338438051,1726639838569,-500.0,0.00019157,2]
[338438052,1726639838580,-500.0,0.00019157,2]
[338438053,1726639838590,-500.0,0.00019157,2]
[338438054,1726639838600,-239.65096835,0.00019157,2]
[338438055,1726639838609,-500.0,0.00019157,2]
[338438056,1726639838618,-500.0,0.00019157,2]
[338438057,1726639838628,-500.0,0.00019157,2]
[338438058,1726639838639,-444.5758991,0.00019157,2]
[338438059,1726639838648,-245.42924862,0.00019157,2]
[338438060,1726639838658,-204355.800197,0.00019158,3]
[338438061,1726639838668,-19005.5987454,0.00019158,3]
[338438062,1726639838678,-20053.15693236,0.00019161,2]
[338438063,1726639838687,-502.71389276,0.00019167,2]
[338438064,1726639838697,-23756.9984318,0.00019168,3]
[338438065,1726639838707,-200.91528279,0.00019173,2]
[338438066,1726639838716,-500.50555096,0.00019173,2]
[338438067,1726639838725,-543.61726829,0.00019173,2]
[338438068,1726639838735,-500.35776297,0.00019173,2]
[338438069,1726639838746,-522.25634702,0.00019173,2]
[338438070,1726639838757,-500.92865773,0.00019173,2]
[338438071,1726639838767,-500.4431137,0.00019173,2]
[338438072,1726639838777,-500.0,0.00019173,2]
[338438073,1726639838786,-513.32263156,0.00019173,2]
[338438074,1726639838798,-254.69698023,0.00019173,2]
[338438075,1726639838809,-591.02249132,0.00019173,2]
[338438076,1726639838819,-500.48891412,0.00019173,2]
[338438077,1726639838831,-500.78291911,0.00019173,2]
[338438078,1726639838842,-500.49163467,0.00019173,2]
[338438079,1726639838851,-500.0,0.00019173,2]
[338438080,1726639838863,-160.11335754,0.00019173,2]
[338438081,1726639838873,-500.0,0.00019173,2]
[338438082,1726639838884,-500.0,0.00019173,2]
[338438083,1726639838894,-500.76551568,0.00019173,2]
[338438084,1726639838904,-538.72167419,0.00019173,2]
[338438085,1726639838913,-360.07202762,0.00019173,2]
[338438086,1726639838922,-500.38098052,0.00019173,2]
[338438087,1726639838930,-500.0,0.00019173,2]
[338438088,1726639838940,-500.0,0.00019173,2]
[338438089,1726639838949,-501.02580175,0.00019173,2]
[338438090,1726639838958,-160.04022025,0.00019173,2]
[338438091,1726639838968,-500.37104256,0.00019173,2]
[338438092,1726639838977,-159.9027995,0.00019173,2]
[338438093,1726639838987,-500.0,0.00019173,2]
[338438094,1726639838997,-500.99242898,0.00019173,2]
[338438095,1726639839006,-1441.30764285,0.00019177,2]
[338438096,1726639839015,-10032.67884088,0.00019178,5]
[338438097,1726639839026,-1465.12116756,0.00019178,5]
[338438098,1726639839037,-500.0,0.00019178,2]
[338438099,1726639839048,-151.0,0.00019178,2]
[338438100,1726639839058,-151.0,0.00019178,2]
[338438101,1726639839070,-500.0,0.00019178,2]
[338438102,1726639839081,-500.0,0.00019178,2]
[338438103,1726639839092,-500.0,0.00019178,2]
[338438104,1726639839102,-565.01973332,0.00019178,2]
[338438105,1726639839115,-500.0,0.00019178,2]
[338438106,1726639839127,-503.92245172,0.00019178,2]
[338438107,1726639839137,-556.87925275,0.00019178,2]
[338438108,1726639839147,-500.0,0.00019178,2]
[338438109,1726639839156,-151.0,0.00019178,2]
[338438110,1726639839167,-502.3850266,0.00019178,2]
[338438111,1726639839178,-500.0,0.00019178,2]
[338438112,1726639839189,-1000.0,0.00019178,2]
[338438113,1726639839199,-500.0,0.00019178,2]
[338438114,1726639839211,-500.0,0.00019178,2]
[338438115,1726639839222,-500.0,0.00019178,2]
[338438116,1726639839234,-820.3,0.00019178,2]
[338438117,1726639839244,-500.0,0.00019178,2]
[338438118,1726639839254,-500.0,0.00019178,2]
[338438119,1726639839264,-500.0,0.00019178,2]
[338438120,1726639839274,-154.29237224,0.00019178,2]
[338438121,1726639839283,-500.0,0.00019178,2]
[338438122,1726639839293,-500.0,0.00019178,2]
[338438123,1726639839302,-500.0,0.00019178,2]
[338438124,1726639839311,-500.0,0.00019178,2]
[338438125,1726639839321,-500.0,0.00019178,2]
[338438126,1726639839330,-500.0,0.00019178,2]
[338438127,1726639839339,-500.0,0.00019178,2]
[338438128,1726639839349,-565.35,0.00019178,2]
[338438129,1726639839358,-500.0,0.00019178,2]
[338438130,1726639839369,-500.0,0.00019178,2]
[338438131,1726639839380,-500.0,0.00019178,2]
[338438132,1726639839390,-500.82107924,0.00019178,2]
[338438133,1726639839401,-500.0,0.00019178,2]
[338438134,1726639839412,-500.0,0.00019178,2]
[338438135,1726639839423,-500.0,0.00019178,2]
[338438136,1726639839434,-1329.8,0.00019178,2]
[338438137,1726639839445,-500.0,0.00019178,2]
[338438138,1726639839457,-500.0,0.00019178,2]
[338438139,1726639839468,-500.0,0.00019178,2]
[338438140,1726639839477,-500.0,0.00019178,2]
[338438141,1726639839487,-480.5328709,0.00019178,2]
[338438142,1726639839498,-500.0,0.00019178,2]
[338438143,1726639839507,-500.0,0.00019178,2]
[338438144,1726639839517,-500.0,0.00019178,2]
[338438145,1726639839526,-500.0,0.00019178,2]
[338438146,1726639839536,-500.0,0.00019178,2]
[338438147,1726639839546,-500.0,0.00019178,2]
[338438148,1726639839557,-500.0,0.00019178,2]
[338438149,1726639839567,-500.0,0.00019178,2]
[338438150,1726639839580,-500.0,0.00019178,2]
[338438151,1726639839592,-555.6,0.00019178,2]
[338438152,1726639839603,-613.01407743,0.00019178,2]
[338438153,1726639839612,-500.0,0.00019178,2]
[338438154,1726639839622,-928.92,0.00019178,2]
[338438155,1726639839632,-771.62,0.00019178,2]
[338438156,1726639839643,-500.0,0.00019178,2]
[338438157,1726639839656,-579.07,0.00019178,2]
[338438158,1726639839666,-1577.25,0.00019178,2]
[338438159,1726639839678,-500.0,0.00019178,2]
[338438160,1726639839690,-500.0,0.00019178,2]
[338438161,1726639839701,-340.34550784,0.00019178,2]
[338438162,1726639839711,-573.87,0.00019178,2]
[338438163,1726639839721,-500.0,0.00019178,2]
[338438164,1726639839731,-500.0,0.00019178,2]
[338438165,1726639839741,-505.13224443,0.00019178,2]
[338438166,1726639839751,-500.0,0.00019178,2]
[338438167,1726639839762,-703.53,0.00019178,2]
[338438168,1726639839772,-1119.41,0.00019178,2]
[338438169,1726639839782,-500.0,0.00019178,2]
[338438170,1726639839791,-500.0,0.00019178,2]
[338438171,1726639839801,-500.0,0.00019178,2]
[338438172,1726639839811,-500.0,0.00019178,2]
[338438173,1726639839820,-500.0,0.00019178,2]
[338438174,1726639839830,-2449.92,0.00019178,2]
[338438175,1726639839840,-500.0,0.00019178,2]
[338438176,1726639839850,-2531.66,0.00019178,2]
[338438177,1726639839859,-508.55647824,0.00019178,2]
[338438178,1726639839869,-500.0,0.00019178,2]
[338438179,1726639839880,-1381.25,0.00019178,2]
[338438180,1726639839890,-920.74,0.00019178,2]
[338438181,1726639839899,-500.0,0.00019178,2]
[338438182,1726639839909,-500.0,0.00019178,2]
[338438183,1726639839919,-818.19,0.00019178,2]
[338438184,1726639839929,-500.0,0.00019178,2]
[338438185,1726639839938,-500.0,0.00019178,2]
[338438186,1726639839947,-500.0,0.00019178,2]
[338438188,1726639840090,-500.0,0.00019178,2]
[338438189,1726639840100,-500.0,0.00019178,2]
[338438190,1726639840109,-500.0,0.00019178,2]
[338438191,1726639840119,-500.0,0.00019178,2]
[338438192,1726639840128,-500.0,0.00019178,2]
[338438193,1726639840138,-261.40377493,0.00019178,2]
[338438194,1726639840147,-500.0,0.00019178,2]
[338438195,1726639840157,-500.0,0.00019178,2]
[338438196,1726639840166,-279.5143847,0.00019178,2]
[338438197,1726639840176,-1341.91,0.00019178,2]
[338438198,1726639840185,-500.0,0.00019178,2]
[338438199,1726639840194,-500.0,0.00019178,2]
[338438200,1726639840204,-500.0,0.00019178,2]
[338438201,1726639840213,-500.0,0.00019178,2]
[338438202,1726639840222,-500.0,0.00019178,2]
[338438203,1726639840231,-542.31879306,0.00019178,2]
[338438204,1726639840240,-500.0,0.00019178,2]
[338438205,1726639840249,-500.0,0.00019178,2]
[338438207,1726639840258,-500.0,0.00019178,2]
[338438209,1726639840267,-500.0,0.00019178,2]
[338438211,1726639840277,-500.0,0.00019178,2]
[338438213,1726639840286,-1708.71,0.00019178,2]
[338438215,1726639840295,-1179.14,0.00019178,2]
[338438217,1726639840304,-1179.14,0.00019178,2]
[338438219,1726639840313,-1179.14,0.00019178,2]
[338438220,1726639840322,-1179.14,0.00019178,2]
[338438221,1726639840331,-1179.14,0.00019178,2]
[338438222,1726639840341,-1997.97,0.00019178,2]
[338438223,1726639840350,-1179.14,0.00019178,2]
[338438224,1726639840360,-1179.14,0.00019178,2]
[338438225,1726639840370,-1179.14,0.00019178,2]
[338438226,1726639840380,-1179.14,0.00019178,2]
[338438227,1726639840390,-500.0,0.00019178,2]
[338438228,1726639840400,-1179.14,0.00019178,2]
[338438229,1726639840410,-1179.14,0.00019178,2]
[338438230,1726639840420,-1179.14,0.00019178,2]
[338438231,1726639840430,-1179.14,0.00019178,2]
[338438232,1726639840439,-1179.14,0.00019178,2]
[338438233,1726639840449,-1179.14,0.00019178,2]
[338438234,1726639840459,-1179.14,0.00019178,2]
[338438235,1726639840469,-1246.0,0.00019178,2]
[338438236,1726639840478,-1179.14,0.00019178,2]
[338438237,1726639840488,-884.2,0.00019178,2]
[338438238,1726639840498,-1179.14,0.00019178,2]
[338438239,1726639840508,-500.0,0.00019178,2]
[338438240,1726639840518,-1179.14,0.00019178,2]
[338438241,1726639840527,-1179.14,0.00019178,2]
[338438242,1726639840537,-1179.14,0.00019178,2]
[338438243,1726639840547,-1179.14,0.00019178,2]
[338438244,1726639840557,-1179.14,0.00019178,2]
[338438245,1726639840566,-1179.20439044,0.00019178,2]
[338438246,1726639840576,-548.11,0.00019178,2]
[338438247,1726639840588,-1515.46,0.00019178,2]
[338438248,1726639840598,-500.0,0.00019178,2]
[338438249,1726639840608,-670.46,0.00019178,2]
[338438250,1726639840619,-500.0,0.00019178,2]
[338438251,1726639840628,-500.0,0.00019178,2]
[338438252,1726639840639,-500.0,0.00019178,2]
[338438253,1726639840648,-945.57,0.00019178,2]
[338438254,1726639840657,-500.0,0.00019178,2]
[338438255,1726639840666,-605.62,0.00019178,2]
[338438256,1726639840677,-500.0,0.00019178,2]
[338438257,1726639840686,-500.0,0.00019178,2]
[338438258,1726639840696,-500.0,0.00019178,2]
[338438259,1726639840705,-151.0,0.00019178,2]
[338438260,1726639840715,-500.0,0.00019178,2]
[338438261,1726639840724,-500.0,0.00019178,2]
[338438262,1726639840734,-500.0,0.00019178,2]
[338438263,1726639840743,-529.56,0.00019178,2]
[338438264,1726639840753,-223.49469264,0.00019178,2]
[338438265,1726639840762,-1038.9,0.00019178,2]
[338438266,1726639840772,-500.0,0.00019178,2]
[338438267,1726639840781,-657.03,0.00019178,2]
[338438268,1726639840791,-500.0,0.00019178,2]
[338438269,1726639840800,-1613.42,0.00019178,2]
[338438270,1726639840810,-500.0,0.00019178,2]
[338438271,1726639840820,-500.0,0.00019178,2]
[338438272,1726639840830,-500.0,0.00019178,2]
[338438273,1726639840839,-500.0,0.00019178,2]
[338438274,1726639840850,-1666.22,0.00019178,2]
[338438275,1726639840860,-500.0,0.00019178,2]
[338438276,1726639840870,-501.44,0.00019178,2]
[338438277,1726639840879,-505.83,0.00019178,2]
[338438278,1726639840889,-500.0,0.00019178,2]
[338438279,1726639840899,-500.0,0.00019178,2]
[338438280,1726639840909,-740.77,0.00019178,2]
[338438281,1726639840918,-500.0,0.00019178,2]
[338438282,1726639840927,-1257.48,0.00019178,2]
[338438283,1726639840936,-500.0,0.00019178,2]
[338438284,1726639840946,-500.0,0.00019178,2]
[338438285,1726639840955,-500.0,0.00019178,2]
[338438286,1726639840964,-500.0,0.00019178,2]
[338438287,1726639840974,-1260.9,0.00019178,2]
[338438288,1726639840983,-500.0,0.00019178,2]
[338438289,1726639840992,-500.0,0.00019178,2]
[338438290,1726639841003,-500.0,0.00019178,2]
[338438291,1726639841012,-500.0,0.00019178,2]
[338438292,1726639841022,-500.0,0.00019178,2]
[338438293,1726639841031,-690.2,0.00019178,2]
[338438294,1726639841041,-500.0,0.00019178,2]
[338438295,1726639841050,-500.0,0.00019178,2]
[338438296,1726639841060,-151.0,0.00019178,2]
[338438297,1726639841069,-151.0,0.00019178,2]
[338438298,1726639841079,-188.942496,0.00019178,2]
[338438299,1726639841088,-188.942496,0.00019178,2]
[338438300,1726639841098,-500.0,0.00019178,2]
[338438301,1726639841108,-1325.82,0.00019178,2]
[338438302,1726639841118,-174.24022888,0.00019178,2]
[338438303,1726639841128,-500.0,0.00019178,2]
[338438304,1726639841139,-500.0,0.00019178,2]
[338438305,1726639841149,-500.0,0.00019178,2]
[338438306,1726639841158,-500.0,0.00019178,2]
[338438307,1726639841167,-188.942496,0.00019178,2]
[338438308,1726639841176,-188.942496,0.00019178,2]
[338438309,1726639841187,-735.43,0.00019178,2]
[338438310,1726639841197,-500.0,0.00019178,2]
[338438311,1726639841207,-500.0,0.00019178,2]
[338438312,1726639841217,-500.0,0.00019178,2]
[338438313,1726639841227,-500.0,0.00019178,2]
[338438314,1726639841238,-500.0,0.00019178,2]
[338438315,1726639841247,-500.0,0.00019178,2]
[338438316,1726639841257,-500.0,0.00019178,2]
[338438317,1726639841266,-500.0,0.00019178,2]
[338438318,1726639841276,-500.0,0.00019178,2]
[338438319,1726639841286,-501.69517399,0.00019178,2]
[338438320,1726639841295,-500.0,0.00019178,2]
[338438321,1726639841304,-500.0,0.00019178,2]
[338438322,1726639841314,-596.58861169,0.00019178,2]
[338438323,1726639841324,-500.0,0.00019178,2]
[338438324,1726639841334,-607.19,0.00019178,2]
[338438325,1726639841344,-500.0,0.00019178,2]
[338438326,1726639841354,-500.0,0.00019178,2]
[338438327,1726639841364,-309.26441141,0.00019178,2]
[338438328,1726639841374,-525.69,0.00019178,2]
[338438329,1726639841383,-1364.46,0.00019178,2]
[338438330,1726639841395,-1199.35,0.00019178,2]
[338438331,1726639841405,-500.0,0.00019178,2]
[338438332,1726639841414,-875.03,0.00019178,2]
[338438333,1726639841424,-500.0,0.00019178,2]
[338438334,1726639841434,-500.0,0.00019178,2]
[338438335,1726639841443,-500.0,0.00019178,2]
[338438336,1726639841453,-500.0,0.00019178,2]
[338438337,1726639841462,-500.0,0.00019178,2]
[338438338,1726639841471,-573.29967654,0.00019178,2]
[338438339,1726639841481,-500.0,0.00019178,2]
[338438340,1726639841491,-500.0,0.00019178,2]
[338438341,1726639841500,-500.0,0.00019178,2]
[338438342,1726639841511,-500.0,0.00019178,2]
[338438343,1726639841520,-500.0,0.00019178,2]
[338438344,1726639841530,-533.87,0.00019178,2]
[338438345,1726639841540,-500.0,0.00019178,2]
[338438346,1726639841550,-500.0,0.00019178,2]
[338438347,1726639841559,-500.0,0.00019178,2]
[338438348,1726639841569,-1073.75,0.00019178,2]
[338438349,1726639841582,-1000.0,0.00019178,2]
[338438350,1726639841596,-154.946537,0.00019178,2]
[338438351,1726639841606,-500.0,0.00019178,2]
[338438352,1726639841616,-500.0,0.00019178,2]
[338438353,1726639841626,-2299.35,0.00019178,2]
[338438354,1726639841636,-500.0,0.00019178,2]
[338438355,1726639841650,-502.83589246,0.00019178,2]
[338438356,1726639841663,-981.36,0.00019178,2]
[338438357,1726639841672,-500.0,0.00019178,2]
[338438358,1726639841682,-1686.73,0.00019178,2]
[338438359,1726639841692,-631.13,0.00019178,2]
[338438360,1726639841701,-891.01,0.00019178,2]
[338438361,1726639841710,-500.0,0.00019178,2]
[338438362,1726639841720,-1494.17,0.00019178,2]
[338438363,1726639841730,-500.0,0.00019178,2]
[338438364,1726639841741,-500.0,0.00019178,2]
[338438365,1726639841750,-589.2542413,0.00019178,2]
[338438366,1726639841760,-500.0,0.00019178,2]
[338438367,1726639841770,-500.0,0.00019178,2]
[338438368,1726639841780,-151.0,0.00019178,2]
[338438369,1726639841790,-500.0,0.00019178,2]
[338438370,1726639841800,-500.0,0.00019178,2]
[338438371,1726639841809,-1879.22,0.00019178,2]
[338438372,1726639841819,-500.0,0.00019178,2]
[338438373,1726639841829,-585.08,0.00019178,2]